bitfinex-derivatives/quotes_SOLF0:USTF0_20250719
["timestamp","ask_amount","ask_price","bid_price","bid_amount"]
[1752942720799,3.07,177.82,177.8,3.23]
[1752942720994,3.07,177.85,177.72,4.70073034]
[1752942721202,3.07,177.85,177.81,3.23]
[1752942721400,3.07,177.84,177.81,3.23]
[1752942721600,3.07,177.82,177.81,3.23]
[1752942721993,3.07,177.82,177.77,2.39099025]
[1752942722198,3.07,177.81,177.79,3.23]
[1752942722405,3.07,177.81,177.75,2.39099025]
[1752942722604,3.07,177.81,177.76,3.23]
[1752942722605,5.6223,177.79,177.76,3.23]
[1752942722805,3.07,177.77,177.76,3.23]
[1752942723409,3.07,177.77,177.74,3.23]
[1752942723609,3.07,177.77,177.75,3.23]
[1752942723808,5.623,177.77,177.75,3.23]
[1752942724113,3.07,177.76,177.75,3.23]
[1752942724613,8.6931,177.76,177.75,3.23]
[1752942724810,8.6931,177.76,177.68,106.06]
[1752942724811,3.07,177.75,177.66,377.94]
[1752942725012,5.46099025,177.75,177.71,3.23]
[1752942725316,3.07,177.74,177.69,3.23]
[1752942725613,5.6247,177.71,177.7,3.23]
[1752942725813,5.6247,177.71,177.69,3.23]
[1752942725814,3.07,177.7,177.69,3.23]
[1752942726028,2.39099025,177.73,177.67,3.23]
[1752942726309,2.39099025,177.73,177.66,3.23]
[1752942726310,3.07,177.72,177.66,3.23]
[1752942726812,5.6249,177.71,177.66,8.8562]
[1752942727010,3.07,177.72,177.68,3.23]
[1752942727210,3.07,177.72,177.66,3.23]
[1752942727412,5.6253,177.7,177.66,3.23]
[1752942727613,5.6253,177.7,177.67,3.23]
[1752942727814,3.07,177.68,177.67,3.23]
[1752942728116,3.07,177.7,177.67,3.23]
[1752942728520,5.46099025,177.72,177.66,3.23]
[1752942728712,2.39099025,177.72,177.66,3.23]
[1752942728908,2.39099025,177.72,177.67,3.23]
[1752942728909,3.07,177.69,177.67,3.23]
[1752942729110,3.07,177.68,177.67,3.23]
[1752942731720,3.07,177.69,177.65,3.23]
[1752942731921,3.07,177.69,177.66,3.23]
[1752942732716,3.07,177.68,177.65,3.23]
[1752942733517,8.6958,177.68,177.65,3.23]
[1752942733719,5.6258,177.68,177.65,3.23]
[1752942733918,3.07,177.66,177.65,3.23]
[1752942734514,3.07,177.66,177.62,3.23]
[1752942734920,5.6268,177.65,177.62,3.23]
[1752942735224,3.07,177.63,177.62,3.23]
[1752942739624,5.6264,177.66,177.59,2.39099025]
[1752942739820,3.07,177.66,177.62,3.23]
[1752942740629,3.07,177.66,177.64,3.07]
[1752942741730,3.07,177.66,177.63,5.627]
[1752942741933,8.6963,177.66,177.65,3.07]
[1752942742130,3.07,177.66,177.65,3.07]
[1752942743030,3.07,177.66,177.62,2.39099025]
[1752942743231,3.07,177.66,177.64,3.07]
[1752942743427,3.07,177.66,177.62,3.07]
[1752942743634,3.07,177.66,177.63,3.07]
[1752942743828,5.6271,177.64,177.61,3.07]
[1752942744031,3.11,177.65,177.59,3.07]
[1752942744633,3.11,177.61,177.59,3.07]
[1752942745033,3.11,177.63,177.57,3.07]
[1752942745235,8.01809025,177.64,177.6,3.07]
[1752942745436,3.11,177.62,177.61,3.07]
[1752942745933,5.629,177.71,177.61,3.07]
[1752942745934,5.6266,177.65,177.61,3.07]
[1752942746137,3.11,177.63,177.61,3.07]
[1752942746334,2.39099025,177.71,177.63,3.07]
[1752942746540,3.11,177.69,177.63,3.07]
[1752942746834,3.11,177.66,177.64,3.07]
[1752942747036,3.11,177.68,177.62,3.07]
[1752942747432,3.11,177.66,177.63,3.07]
[1752942747637,3.11,177.66,177.64,3.07]
[1752942748939,3.11,177.65,177.64,3.07]
[1752942751641,5.6262,177.67,177.64,3.07]
[1752942751642,3.11,177.66,177.64,3.07]
[1752942751834,3.11,177.68,177.65,3.07]
[1752942752038,3.11,177.68,177.65,8.6966]
[1752942752238,3.11,177.68,177.66,3.07]
[1752942753448,8.7357,177.68,177.66,3.07]
[1752942753746,8.7357,177.68,177.67,3.07]
[1752942754144,3.11,177.68,177.67,3.07]
[1752942755040,8.7356,177.68,177.67,3.07]
[1752942755443,5.6256,177.68,177.65,3.07]
[1752942755746,3.11,177.66,177.64,8.01789025]
[1752942755943,3.11,177.66,177.6,2.39099025]
[1752942756244,3.11,177.66,177.61,3.07]
[1752942756543,3.11,177.66,177.62,3.07]
[1752942756741,3.11,177.66,177.6,5.46099025]
[1752942756942,3.11,177.65,177.61,3.07]
[1752942757845,3.11,177.65,177.58,2.39099025]
[1752942758047,3.11,177.64,177.61,3.07]
[1752942759243,3.11,177.65,177.62,3.07]
[1752942759443,2.39099025,177.68,177.62,3.07]
[1752942759739,8.7365,177.66,177.62,3.07]
[1752942759943,3.11,177.68,177.63,2.39099025]
[1752942760248,3.11,177.68,177.64,3.07]
[1752942760443,8.7358,177.68,177.65,3.07]
[1752942760642,3.11,177.68,177.65,3.07]
[1752942760844,3.11,177.7,177.65,5.46099025]
[1752942761048,8.7354,177.69,177.67,3.07]
[1752942761850,3.11,177.69,177.67,8.6958]
[1752942762149,8.7352,177.7,177.68,3.07]
[1752942762451,3.11,177.7,177.68,3.07]
[1752942762845,3.11,177.75,177.72,3.07]
[1752942763046,8.7338,177.74,177.73,3.07]
[1752942763441,8.7338,177.74,177.7,5.625]
[1752942763638,3.11,177.73,177.72,3.07]
[1752942765347,3.11,177.73,177.7,3.07]
[1752942765552,3.11,177.73,177.68,3.07]
[1752942765743,2.39099025,177.72,177.66,3.07]
[1752942765949,3.11,177.69,177.67,3.07]
[1752942766249,3.11,177.69,177.68,3.07]
[1752942768846,3.11,177.69,177.66,5.6262]
[1752942769153,3.11,177.68,177.67,3.07]
[1752942772849,5.6255,177.69,177.66,3.25]
[1752942773154,3.15,177.68,177.66,3.25]
[1752942773353,3.15,177.71,177.66,3.25]
[1752942773755,5.6251,177.7,177.66,3.25]
[1752942773955,3.15,177.69,177.66,3.25]
[1752942774452,3.15,177.74,177.67,2.39099025]
[1752942774750,6.29802497,177.8,177.74,3.25]
[1752942774955,5.6222,177.8,177.76,5.6229]
[1752942775149,3.15,177.79,177.78,3.25]
[1752942775352,3.15,177.79,177.76,3.25]
[1752942775551,3.15,177.78,177.77,3.25]
[1752942776453,5.54099025,177.81,177.75,3.25]
[1752942776652,3.15,177.8,177.75,3.25]
[1752942777255,3.15,177.75,177.73,3.25]
[1752942777449,3.15,177.74,177.73,3.25]
[1752942778152,3.15,177.78,177.73,3.25]
[1752942778358,5.6231,177.77,177.74,3.25]
[1752942778754,3.15,177.75,177.74,3.25]
[1752942779555,3.15,177.77,177.74,3.25]
[1752942779856,2.39099025,177.81,177.74,3.25]
[1752942780060,3.15,177.8,177.75,3.25]
[1752942780257,2.39099025,177.81,177.75,3.25]
[1752942780562,3.15,177.83,177.78,3.25]
[1752942780759,3.15,177.82,177.78,3.25]
[1752942780957,8.68901522,177.85,177.78,3.25]
[1752942781261,3.15,177.81,177.78,3.25]
[1752942782059,3.15,177.81,177.78,5.6222]
[1752942782252,3.15,177.81,177.8,3.25]
[1752942784752,3.15,177.81,177.79,3.25]
[1752942785358,3.15,177.8,177.79,3.25]
[1752942787962,3.15,177.8,177.77,3.25]
[1752942788759,3.15,177.78,177.77,3.25]
[1752942790366,8.7725,177.78,177.77,3.25]
[1752942790667,3.15,177.77,177.75,3.25]
[1752942790864,134.77702497,177.86,177.65,11.2529]
[1752942790865,2.39099025,177.79,177.72,3.25]
[1752942791067,5.6236,177.75,177.71,8.01549025]
[1752942791366,3.15,177.74,177.73,3.25]
[1752942792366,3.15,177.74,177.71,3.25]
[1752942792766,5.6242,177.73,177.67,2.39099025]
[1752942792967,3.15,177.71,177.7,3.25]
[1752942795058,8.7747,177.71,177.68,3.25]
[1752942795259,3.15,177.7,177.69,3.25]
[1752942795867,2.39099025,177.73,177.69,3.25]
[1752942796166,3.15,177.72,177.69,3.25]
[1752942796363,3.15,177.71,177.6,282.31210657]
[1752942796564,3.15,177.7,177.69,3.25]
[1752942796766,3.15,177.72,177.7,3.25]
[1752942796965,3.15,177.74,177.7,3.25]
[1752942797170,3.15,177.76,177.7,3.25]
[1752942797368,3.15,177.75,177.72,3.25]
[1752942797572,3.15,177.76,177.69,3.25]
[1752942797968,3.15,177.76,177.68,2.39099025]
[1752942797969,5.6233,177.76,177.71,5.6245]
[1752942798177,3.15,177.75,177.68,2.39099025]
[1752942798375,3.15,177.74,177.73,3.25]
[1752942800379,3.19,177.76,177.73,3.25]
[1752942800583,5.623,177.77,177.73,3.25]
[1752942800877,8.813,177.77,177.73,3.25]
[1752942801975,8.813,177.77,177.74,3.17]
[1752942802781,3.19,177.77,177.72,2.39099025]
[1752942803083,3.19,177.78,177.75,3.17]
[1752942803283,3.19,177.8,177.74,2.39099025]
[1752942803485,3.19,177.8,177.75,3.17]
[1752942803985,3.19,177.77,177.75,3.17]
[1752942804386,3.19,177.76,177.75,3.17]
[1752942806685,6.29802497,177.81,177.73,3.17]
[1752942806886,3.19,177.75,177.74,3.17]
[1752942810294,8.8134,177.75,177.74,3.17]
[1752942810589,2.39099025,177.79,177.7,8.01589025]
[1752942810590,3.19,177.76,177.71,3.17]
[1752942811687,3.19,177.76,177.72,3.17]
[1752942811994,3.19,177.73,177.72,3.17]
[1752942812186,3.19,177.73,177.61,4.70073034]
[1752942812486,3.19,177.73,177.71,3.17]
[1752942812690,3.19,177.73,177.67,2.39099025]
[1752942812895,5.6249,177.71,177.69,3.17]
[1752942813095,3.19,177.7,177.69,3.17]
[1752942813490,3.19,177.72,177.69,3.17]
[1752942813691,3.19,177.71,177.69,3.17]
[1752942815696,8.8147,177.71,177.69,3.17]
[1752942816493,3.19,177.71,177.69,3.17]
[1752942816689,3.19,177.75,177.69,3.17]
[1752942816894,3.19,177.75,177.71,3.17]
[1752942817303,8.8135,177.75,177.72,5.6244]
[1752942817494,8.8135,177.75,177.73,3.17]
[1752942817696,2.39099025,177.78,177.73,3.17]
[1752942817895,3.19,177.77,177.74,3.17]
[1752942818392,3.19,177.76,177.75,3.17]
[1752942821595,3.19,177.78,177.75,3.17]
[1752942821993,5.6225,177.78,177.74,5.6237]
[1752942822196,3.19,177.76,177.74,5.6237]
[1752942822600,3.19,177.76,177.7,3.17]
[1752942822795,5.6225,177.78,177.71,2.39099025]
[1752942822996,3.19,177.75,177.72,3.17]
[1752942823197,3.19,177.75,177.73,5.624]
[1752942823396,3.19,177.75,177.74,3.17]
[1752942828599,3.19,177.75,177.73,3.17]
[1752942828996,5.6238,177.74,177.73,3.17]
[1752942829195,2.39099025,177.78,177.73,3.17]
[1752942829401,3.19,177.77,177.73,3.17]
[1752942829599,8.8137,177.75,177.73,3.17]
[1752942830908,3.19,177.75,177.73,3.17]
[1752942832008,3.31,177.76,177.73,3.17]
[1752942832205,3.31,177.76,177.74,3.27]
[1752942832708,3.31,177.75,177.74,3.27]
[1752942842715,3.31,177.73,177.68,2.39099025]
[1752942843022,3.31,177.75,177.69,3.27]
[1752942843215,5.624,177.74,177.7,5.6249]
[1752942843414,5.624,177.74,177.71,3.27]
[1752942843415,3.31,177.73,177.71,3.27]
[1752942843616,2.39099025,177.75,177.66,5.66099025]
[1752942843812,3.31,177.74,177.67,3.27]
[1752942844614,5.6244,177.72,177.69,5.6253]
[1752942844811,3.31,177.72,177.64,3.27]
[1752942845019,8.9357,177.68,177.64,8.8966]
[1752942845212,8.9357,177.68,177.66,3.27]
[1752942845213,3.31,177.67,177.66,3.27]
[1752942846915,3.31,177.67,177.64,5.6267]
[1752942847118,3.31,177.67,177.62,3.27]
[1752942847621,5.70099025,177.67,177.63,3.27]
[1752942847815,2.39099025,177.67,177.63,3.27]
[1752942848022,3.31,177.66,177.63,3.27]
[1752942849016,2.39099025,177.67,177.63,3.27]
[1752942849017,3.31,177.65,177.63,3.27]
[1752942849213,3.31,177.65,177.6,3.27]
[1752942849524,3.31,177.64,177.58,3.27]
[1752942849716,3.31,177.64,177.57,2.39099025]
[1752942849717,3.31,177.63,177.61,3.27]
[1752942849917,3.31,177.64,177.58,3.27]
[1752942850117,3.31,177.67,177.6,3.27]
[1752942851014,3.31,177.67,177.59,2.39099025]
[1752942851015,3.31,177.65,177.63,3.27]
[1752942851213,3.31,177.64,177.62,5.6274]
[1752942851814,3.31,177.64,177.63,3.27]
[1752942852015,5.70099025,177.64,177.56,3.27]
[1752942852220,3.31,177.63,177.57,3.27]
[1752942852527,2.39099025,177.64,177.59,3.27]
[1752942852719,3.31,177.61,177.59,3.27]
[1752942853224,3.31,177.61,177.59,5.6285]
[1752942853525,6.29802497,177.68,177.55,105.76]
[1752942853526,3.31,177.63,177.6,3.27]
[1752942853822,6.29802497,177.7,177.61,3.27]
[1752942854014,2.39099025,177.65,177.61,3.27]
[1752942854215,5.627,177.64,177.59,5.6284]
[1752942854414,3.31,177.63,177.62,3.27]
[1752942856022,8.9372,177.63,177.62,3.27]
[1752942856323,3.31,177.62,177.61,3.27]
[1752942856524,3.31,177.62,177.58,3.27]
[1752942856925,2.39099025,177.65,177.59,3.27]
[1752942856926,3.31,177.61,177.59,3.27]
[1752942857334,8.9379,177.61,177.59,3.27]
[1752942857528,3.31,177.6,177.59,3.27]
[1752942859524,3.31,177.62,177.59,3.27]
[1752942859930,3.31,177.61,177.57,5.6291]
[1752942860230,3.31,177.6,177.58,3.27]
[1752942861126,3.21,177.59,177.57,5.6291]
[1752942861521,5.6277,177.62,177.57,5.6291]
[1752942861729,3.21,177.6,177.59,3.26]
[1752942862834,3.21,177.59,177.57,3.26]
[1752942863433,8.8387,177.59,177.57,3.26]
[1752942863632,3.21,177.6,177.52,3.26]
[1752942863832,3.21,177.6,177.52,2.39099025]
[1752942864033,5.6289,177.58,177.54,5.6299]
[1752942864233,5.6289,177.58,177.55,3.26]
[1752942864434,3.21,177.57,177.55,3.26]
[1752942864630,3.21,177.57,177.56,3.26]
[1752942865041,8.8385,177.59,177.56,3.26]
[1752942865237,3.21,177.59,177.57,3.26]
[1752942865439,3.21,177.59,177.58,3.26]
[1752942866446,8.8385,177.59,177.58,3.26]
[1752942866845,3.21,177.59,177.58,3.26]
[1752942867044,3.21,177.61,177.58,3.26]
[1752942867243,3.21,177.63,177.56,3.26]
[1752942867445,3.21,177.61,177.56,8.8893]
[1752942867641,3.21,177.58,177.54,3.26]
[1752942868145,3.21,177.56,177.52,3.26]
[1752942868345,3.21,177.55,177.52,3.26]
[1752942868544,3.21,177.55,177.53,5.6303]
[1752942868745,3.21,177.55,177.54,3.26]
[1752942869248,3.21,177.56,177.54,3.26]
[1752942869448,3.21,177.56,177.55,3.26]
[1752942869746,8.8395,177.56,177.55,3.26]
[1752942870452,3.21,177.54,177.52,3.26]
[1752942870853,3.21,177.54,177.52,8.8906]
[1752942871051,3.21,177.54,177.53,3.26]
[1752942871857,3.21,177.57,177.51,3.26]
[1752942872050,3.21,177.55,177.51,3.26]
[1752942872553,5.6303,177.54,177.52,3.26]
[1752942872756,2.39099025,177.58,177.53,3.26]
[1752942873251,5.6299,177.55,177.51,5.6309]
[1752942873459,3.21,177.57,177.5,2.39099025]
[1752942873850,5.6297,177.56,177.53,5.6304]
[1752942874052,3.21,177.56,177.54,3.26]
[1752942874455,8.8396,177.56,177.54,3.26]
[1752942874655,2.39099025,177.58,177.53,3.26]
[1752942875055,3.21,177.57,177.53,3.26]
[1752942875254,5.6301,177.54,177.51,3.26]
[1752942875448,5.6301,177.54,177.44,11.2665]
[1752942875449,3.21,177.52,177.49,2.39099025]
[1752942876057,3.21,177.52,177.5,8.8911]
[1752942876251,3.21,177.52,177.51,3.26]
[1752942876649,2.39099025,177.61,177.55,3.26]
[1752942876855,5.60099025,177.61,177.55,3.26]
[1752942877046,3.21,177.6,177.56,3.26]
[1752942877353,3.21,177.6,177.54,3.26]
[1752942878151,5.6291,177.58,177.55,3.26]
[1752942878358,3.21,177.56,177.55,3.26]
[1752942878855,3.21,177.58,177.55,3.26]
[1752942879155,3.21,177.57,177.56,3.26]
[1752942880252,3.21,177.57,177.52,2.39099025]
[1752942880455,3.21,177.57,177.53,3.26]
[1752942881652,2.39099025,177.61,177.53,3.26]
[1752942881847,2.39099025,177.62,177.54,3.26]
[1752942882053,3.21,177.61,177.55,2.39099025]
[1752942882253,3.21,177.61,177.56,3.26]
[1752942882853,3.21,177.59,177.57,3.26]
[1752942883256,3.21,177.58,177.56,5.6293]
[1752942883958,3.21,177.58,177.57,3.26]
[1752942886256,11.92702497,177.69,177.6,3.26]
[1752942886455,3.21,177.64,177.6,3.26]
[1752942887056,3.21,177.62,177.61,3.26]
[1752942889462,3.21,177.62,177.6,3.26]
[1752942889864,3.21,177.61,177.6,3.26]
[1752942891762,3.21,177.61,177.59,3.04]
[1752942892557,3.08,177.6,177.58,5.6286]
[1752942893166,3.08,177.6,177.59,3.04]
[1752942900366,3.08,177.64,177.59,3.04]
[1752942900571,3.08,177.63,177.59,3.04]
[1752942900763,3.08,177.66,177.6,3.04]
[1752942900962,3.08,177.64,177.6,3.04]
[1752942901268,6.29802497,177.67,177.63,2.39099025]
[1752942901572,390.77604994,177.77,177.57,2.39099025]
[1752942901573,3.08,177.71,177.66,3.04]
[1752942901870,8.68901522,177.75,177.58,6.26978833]
[1752942901871,3.08,177.75,177.71,3.04]
[1752942902164,3.08,177.72,177.68,2.39099025]
[1752942902366,5.6245,177.72,177.66,2.39099025]
[1752942902561,8.68901522,177.76,177.66,2.39099025]
[1752942902762,3.08,177.75,177.68,2.39099025]
[1752942902964,3.08,177.74,177.71,3.04]
[1752942903167,3.08,177.75,177.71,3.04]
[1752942903668,3.08,177.75,177.71,5.6246]
[1752942903872,3.08,177.75,177.72,3.04]
[1752942904370,3.08,177.75,177.72,5.6244]
[1752942904572,5.6233,177.76,177.73,3.04]
[1752942904766,8.7033,177.76,177.73,3.04]
[1752942905267,3.08,177.76,177.73,3.04]
[1752942905863,8.7032,177.76,177.72,2.39099025]
[1752942906066,8.7032,177.76,177.75,3.04]
[1752942906366,3.08,177.76,177.75,8.6634]
[1752942906569,3.08,177.79,177.75,3.04]
[1752942907064,3.08,177.79,177.77,3.04]
[1752942907474,3.08,177.79,177.78,3.04]
[1752942908871,3.08,177.81,177.8,3.04]
[1752942910568,3.08,177.81,177.76,8.01409025]
[1752942910769,3.08,177.81,177.79,3.04]
[1752942912474,3.08,177.82,177.79,3.04]
[1752942912669,3.08,177.81,177.79,3.04]
[1752942913075,3.08,177.81,177.78,5.6225]
[1752942913275,3.08,177.81,177.8,3.04]
[1752942916279,3.08,177.83,177.78,5.6225]
[1752942916478,3.08,177.83,177.81,3.04]
[1752942917678,3.08,177.82,177.81,3.04]
[1752942924086,3.08,177.82,177.79,3.21]
[1752942924286,3.08,177.82,177.8,3.21]
[1752942924482,3.16,177.81,177.78,5.6224]
[1752942924982,3.16,177.81,177.79,5.622]
[1752942925286,3.16,177.81,177.8,3.21]
[1752942925689,3.16,177.83,177.8,3.21]
[1752942925982,3.16,177.82,177.8,3.21]
[1752942926583,2.39099025,177.84,177.68,11.2508]
[1752942926791,3.16,177.81,177.76,3.21]
[1752942927287,3.16,177.8,177.77,3.21]
[1752942927488,3.16,177.81,177.77,3.21]
[1752942928486,3.16,177.8,177.79,3.21]
[1752942929690,3.16,177.8,177.79,8.8322]
[1752942929885,5.55099025,177.82,177.79,3.21]
[1752942930087,3.16,177.83,177.79,3.21]
[1752942930592,3.16,177.82,177.79,3.21]
[1752942931087,3.16,177.84,177.77,2.39099025]
[1752942931393,3.16,177.84,177.81,5.6213]
[1752942931688,3.16,177.85,177.82,3.21]
[1752942932594,3.16,177.85,177.83,3.21]
[1752942933595,8.7803,177.85,177.83,3.21]
[1752942933892,3.16,177.84,177.83,3.21]
[1752942934391,3.16,177.84,177.81,5.6215]
[1752942934589,3.16,177.85,177.83,3.21]
[1752942934984,3.16,177.83,177.82,5.6211]
[1752942935385,3.16,177.83,177.82,8.8311]
[1752942935586,3.16,177.83,177.82,3.21]
[1752942937199,3.16,177.83,177.73,2.39099025]
[1752942937399,3.16,177.8,177.79,8.8321]
[1752942937697,2.39099025,177.82,177.79,3.21]
[1752942937895,3.16,177.8,177.74,3.21]
[1752942938398,3.16,177.8,177.79,3.21]
[1752942940994,3.16,177.8,177.79,8.8322]
[1752942941500,3.16,177.81,177.8,3.21]
[1752942944795,2.39099025,177.84,177.8,3.21]
[1752942945001,3.16,177.82,177.81,3.21]
[1752942946800,9.45802497,177.88,177.81,2.39099025]
[1752942946995,2.39099025,177.87,177.82,8.831]
[1752942947302,3.16,177.86,177.83,3.21]
[1752942947599,3.16,177.84,177.74,4.70073034]
[1752942947795,3.16,177.84,177.78,2.39099025]
[1752942947997,3.16,177.84,177.74,4.70073034]
[1752942948300,3.16,177.84,177.8,3.21]
[1752942948803,8.7807,177.84,177.8,3.21]
[1752942949001,5.6207,177.84,177.8,8.8318]
[1752942949204,3.16,177.82,177.81,3.21]
[1752942952402,3.16,177.82,177.79,3.02]
[1752942952603,6.29802497,177.81,177.77,3.02]
[1752942952802,3.02,177.8,177.78,3.02]
[1752942953101,3.02,177.79,177.77,3.02]
[1752942953499,8.01299025,177.8,177.73,2.39099025]
[1752942953500,3.02,177.76,177.73,3.02]
[1752942954905,3.02,177.75,177.68,5.41099025]
[1752942955109,3.02,177.75,177.69,3.02]
[1752942955506,3.02,177.73,177.72,3.02]
[1752942955808,3.02,177.78,177.72,3.02]
[1752942956005,3.02,177.78,177.72,5.41099025]
[1752942956206,3.02,177.78,177.73,3.02]
[1752942956608,2.39099025,177.8,177.73,3.02]
[1752942956806,3.02,177.79,177.73,3.02]
[1752942957410,3.02,177.78,177.76,3.02]
[1752942959314,6.29802497,177.81,177.76,5.41099025]
[1752942959508,3.02,177.81,177.76,2.39099025]
[1752942959707,8.6416,177.81,177.77,8.6426]
[1752942959910,3.02,177.8,177.78,3.02]
[1752942960108,3.02,177.8,177.79,3.02]
[1752942960708,11.91932497,177.82,177.79,3.02]
[1752942961010,3.02,177.81,177.79,3.02]
[1752942962808,3.02,177.81,177.8,3.02]
[1752942966015,3.02,177.83,177.8,3.02]
[1752942966410,3.02,177.82,177.8,3.02]
[1752942966606,6.29802497,177.85,177.8,3.02]
[1752942966810,3.02,177.84,177.8,3.02]
[1752942967410,3.02,177.84,177.81,5.6213]
[1752942967610,5.6202,177.86,177.82,3.02]
[1752942967815,3.02,177.85,177.82,3.02]
[1752942968513,5.6204,177.85,177.83,3.02]
[1752942968815,8.68901522,177.87,177.83,3.02]
[1752942969016,5.6202,177.86,177.83,3.02]
[1752942969209,3.02,177.85,177.83,3.02]
[1752942969704,3.02,177.84,177.83,3.02]
[1752942972209,9.31802497,177.87,177.83,8.6408]
[1752942972419,3.02,177.87,177.84,3.02]
[1752942972715,5.6199,177.87,177.82,2.39099025]
[1752942972905,3.02,177.86,177.85,3.02]
[1752942973617,3.02,177.85,177.82,3.02]
[1752942973810,3.02,177.85,177.75,4.70073034]
[1752942974019,3.02,177.83,177.77,3.02]
[1752942974519,3.02,177.82,177.79,3.02]
[1752942975013,5.6207,177.84,177.79,5.6219]
[1752942975213,3.02,177.84,177.8,3.02]
[1752942975906,3.02,177.84,177.8,8.6418]
[1752942976115,3.02,177.86,177.81,3.02]
[1752942976514,3.02,177.88,177.83,3.02]
[1752942976713,3.02,177.9,177.83,3.02]
[1752942977016,5.6196,177.88,177.84,5.6205]
[1752942977213,3.02,177.87,177.85,3.02]
[1752942977418,3.02,177.87,177.86,3.02]
[1752942977617,8.6396,177.87,177.86,3.02]
[1752942977815,3.02,177.9,177.86,3.02]
[1752942978220,3.02,177.89,177.83,3.02]
[1752942978816,3.02,177.89,177.85,5.41099025]
[1752942979013,3.02,177.89,177.86,3.02]
[1752942979417,2.39099025,177.9,177.85,3.02]
[1752942979620,3.02,177.89,177.85,3.02]
[1752942979919,5.6195,177.88,177.85,3.02]
[1752942980115,3.02,177.86,177.82,2.39099025]
[1752942980321,3.32,177.9,177.82,2.39099025]
[1752942980622,3.32,177.9,177.83,3.04]
[1752942980816,3.32,177.88,177.85,3.04]
[1752942981321,3.32,177.87,177.85,3.04]
[1752942981520,3.32,177.86,177.85,3.04]
[1752942982212,6.29802497,177.91,177.85,3.04]
[1752942982415,3.32,177.89,177.85,2.39099025]
[1752942982614,3.32,177.89,177.86,3.04]
[1752942982816,3.32,177.88,177.86,3.04]
[1752942983020,3.32,177.87,177.84,5.6203]
[1752942983615,3.32,177.87,177.85,3.04]
[1752942984921,3.32,177.86,177.85,3.04]
[1752942985420,3.32,177.87,177.86,3.04]
[1752942985623,3.32,177.91,177.86,3.04]
[1752942985823,3.32,177.91,177.88,3.04]